bitfinex/quotes_ETHUSD_20250322
["timestamp","ask_amount","ask_price","bid_price","bid_amount"]
[1742676730230,2.53341792,2000.9,2000.5,5.81022]
[1742676730443,7.53119792,2000.9,2000.5,5.81022]
[1742676730820,2.53341792,2000.9,2000.6,4.99845]
[1742676731030,7.53117792,2000.9,2000.5,5.81022]
[1742676731252,4.9981,2000.8,2000.5,0.8116]
[1742676731458,14.22460848,2000.8,2000.5,0.8116]
[1742676731653,14.22460848,2000.8,2000.4,4.671]
[1742676731858,10.81526,2000.8,2000.4,4.671]
[1742676732059,5.8171,2000.8,2000.4,4.671]
[1742676732259,5.8171,2000.8,2000.4,9.66995]
[1742676732757,4.9981,2000.8,2000.4,9.66995]
[1742676737660,0.45071209,2000.7,2000.4,9.66995]
[1742676738271,0.45071209,2000.7,2000.4,14.66878]
[1742676738967,0.45071209,2000.7,2000.4,9.66983]
[1742676739468,0.45071209,2000.7,2000.5,26.429]
[1742676740653,0.45071209,2000.7,2000.5,31.42773]
[1742676740858,8.00917665,2000.9,2000.6,5.80728168]
[1742676740859,0.01134665,2000.9,2000.6,5.80728168]
[1742676741074,0.45229479,2000.8,2000.6,5.80728168]
[1742676741384,0.45229479,2000.8,2000.7,4.99825]
[1742676742586,0.45229479,2000.8,2000.6,5.7573]
[1742676742884,0.45229479,2000.8,2000.6,4.9985]
[1742676743086,0.45229479,2000.8,2000.6,9.99683]
[1742676743455,0.45229479,2000.8,2000.6,4.99833]
[1742676744386,0.45229479,2000.8,2000.6,4.99832]
[1742676744883,0.45229479,2000.8,2000.6,9.99666]
[1742676746281,0.45229479,2000.8,2000.6,9.99664]
[1742676746782,0.45229479,2000.8,2000.7,4.99825]
[1742676747890,0.45229479,2000.8,2000.6,4.99832]
[1742676748791,5.45031479,2000.8,2000.7,4.651]
[1742676750886,11.08519178,2000.8,2000.7,4.651]
[1742676751281,13.62272697,2000.8,2000.7,4.651]
[1742676751967,4.9985,2000.6,2000.5,26.429]
[1742676752183,7.53603519,2000.6,2000.5,31.078]
[1742676752397,7.98821364,2000.6,2000.5,31.078]
[1742676753762,2.98971364,2000.6,2000.5,31.078]
[1742676755594,4.3520037,2000.6,2000.5,31.078]
[1742676755791,9.3505037,2000.6,2000.5,31.078]
[1742676755980,4.3520037,2000.6,2000.5,31.078]
[1742676756164,2.98971364,2000.6,2000.5,31.078]
[1742676758697,2.98971364,2000.6,2000.5,4.649]
[1742676762503,7.98821364,2000.6,2000.5,4.649]
[1742676764111,2.98971364,2000.6,2000.5,4.649]
[1742676764605,7.98821364,2000.6,2000.5,4.649]
[1742676765293,5.45067845,2000.6,2000.5,4.649]
[1742676765805,7.98821364,2000.6,2000.5,4.649]
[1742676773116,2.98971364,2000.6,2000.5,4.649]
[1742676773287,0.45217845,2000.6,2000.5,4.649]
[1742676777124,2.98971364,2000.6,2000.5,4.649]
[1742676778321,9.8503497,2000.6,2000.5,4.649]
[1742676778633,7.99884,2000.5,2000.4,4.631]
[1742676778795,5.53753519,2000.5,2000.3,26.429]
[1742676778995,2.53753519,2000.4,2000.3,26.429]
[1742676779310,2.9894205,2000.4,2000.3,26.429]
[1742676779909,2.9894205,2000.4,2000.3,31.06]
[1742676781523,0.45188531,2000.4,2000.3,31.06]
[1742676783005,2.9894205,2000.4,2000.3,31.06]
[1742676785025,7.9884205,2000.4,2000.3,31.06]
[1742676785228,7.9884205,2000.4,2000.3,26.429]
[1742676785392,7.9884205,2000.4,2000.3,31.056]
[1742676787424,7.9884205,2000.4,2000.3,4.627]
[1742676789628,5.45088531,2000.4,2000.3,4.627]
[1742676790043,7.9884205,2000.4,2000.3,4.627]
[1742676790599,5.45088531,2000.4,2000.3,4.627]
[1742676791639,7.9884205,2000.4,2000.3,4.627]
[1742676792740,10.52470899,2000.4,2000.3,4.627]
[1742676793505,4.9995,2000.2,2000.1,26.431]
[1742676793709,10.98779627,2000.2,2000.1,26.431]
[1742676793909,10.98779627,2000.2,2000.1,31.053]
[1742676794110,10.98779627,2000.2,2000.1,26.431]
[1742676794442,10.98779627,2000.2,2000.1,31.053]
[1742676803418,8.45026108,2000.2,2000.1,31.053]
[1742676804549,10.98779627,2000.2,2000.1,31.053]
[1742676805650,8.45026108,2000.2,2000.1,31.053]
[1742676806654,8.45026108,2000.2,2000.1,4.622]
[1742676807852,10.98779627,2000.2,2000.1,4.622]
[1742676810368,11.75099627,2000.2,2000.1,4.622]
[1742676814430,10.98779627,2000.2,2000.1,4.622]
[1742676819180,10.98779627,2000.2,1999.9,26.434]
[1742676820578,10.98779627,2000.2,2000.0,4.616]
[1742676822068,8.45026108,2000.2,2000.0,4.616]
[1742676824079,10.98779627,2000.2,2000.0,4.616]
[1742676825485,10.98779627,2000.2,1999.9,26.434]
[1742676826583,10.98779627,2000.2,2000.0,4.616]
[1742676829091,8.45026108,2000.2,2000.0,4.616]
[1742676830995,5.53753519,2000.1,1999.5,0.0851477]
[1742676831160,3.33883519,1999.6,1999.5,0.0851477]
[1742676831493,0.44961625,1999.6,1999.5,5.0863977]
[1742676831694,0.44961625,1999.6,1999.5,5.67821747]
[1742676831888,2.53753519,1999.8,1999.5,32.11221747]
[1742676832092,0.44888903,1999.6,1999.5,27.11096747]
[1742676832573,7.53832519,1999.7,1999.5,27.11096747]
[1742676832892,0.44888903,1999.6,1999.5,26.5191477]
[1742676833294,7.53832519,1999.7,1999.5,26.5191477]
[1742676833590,2.98642422,1999.6,1999.5,26.5191477]
[1742676833989,7.98742422,1999.6,1999.5,26.5191477]
[1742676834195,7.98742422,1999.6,1999.5,31.1801477]
[1742676843977,7.98742422,1999.6,1999.5,31.17412423]
[1742676850910,7.98742422,1999.6,1999.5,4.74012423]
[1742676853715,7.98742422,1999.6,1999.5,0.07912423]
[1742676853914,13.14547564,1999.6,1999.5,0.07912423]
[1742676855017,3.44888903,1999.6,1999.5,0.07912423]
[1742676855221,5.98642422,1999.6,1999.5,0.07912423]
[1742676855421,10.98742422,1999.6,1999.5,0.07912423]
[1742676855827,5.98642422,1999.6,1999.5,0.07912423]
[1742676859221,10.98742422,1999.6,1999.5,0.07912423]
[1742676859389,12.58624564,1999.6,1999.5,0.07912423]
[1742676862521,10.98742422,1999.6,1999.5,0.07912423]
[1742676864300,8.44988903,1999.6,1999.5,0.07912423]
[1742676864521,10.98742422,1999.6,1999.5,0.07912423]
[1742676864717,0.44888903,1999.6,1999.5,0.07912423]
[1742676865112,7.53834519,1999.7,1999.5,0.07912423]
[1742676865311,0.44566997,1999.6,1999.5,0.07912423]
[1742676865712,2.53753519,1999.6,1999.5,0.07912423]
[1742676865916,0.44566997,1999.6,1999.5,0.07912423]
[1742676866317,12.53928519,1999.7,1999.5,0.07912423]
[1742676866513,7.98420516,1999.6,1999.5,0.07912423]
[1742676868318,9.36069668,1999.6,1999.5,0.07912423]
[1742676880966,6.82316149,1999.6,1999.5,0.07912423]
[1742676881261,5.44666997,1999.6,1999.5,0.07912423]
[1742676882071,7.98420516,1999.6,1999.5,0.07912423]
[1742676882361,5.44666997,1999.6,1999.5,0.07912423]
[1742676884866,7.98420516,1999.6,1999.5,0.07912423]
[1742676887374,5.44666997,1999.6,1999.5,0.07912423]
[1742676889466,7.98420516,1999.6,1999.5,0.07912423]
[1742676892190,9.28270268,1999.6,1999.5,0.07912423]
[1742676895296,12.28270268,1999.6,1999.5,0.07912423]
[1742676897297,13.07310268,1999.6,1999.5,0.07912423]
[1742676902884,15.61063787,1999.6,1999.5,0.07912423]
[1742676903388,13.07310268,1999.6,1999.5,0.07912423]
[1742676903588,13.31875288,1999.6,1999.5,0.07912423]
[1742676904798,14.30825872,1999.6,1999.5,0.07912423]
[1742676904994,14.06260852,1999.6,1999.5,0.07912423]
[1742676905719,14.31459549,1999.6,1999.5,0.07912423]
[1742676911225,16.85213068,1999.6,1999.5,0.07912423]
[1742676912638,16.85213068,1999.6,1998.8,26.445]
[1742676912639,5.00275,1998.9,1998.8,26.445]
[1742676912804,7.54028519,1998.9,1998.8,31.087]
[1742676913006,7.98329829,1998.9,1998.8,31.087]
[1742676916540,8.35929407,1998.9,1998.8,31.087]
[1742676918679,8.35929407,1998.9,1998.7,0.79345335]
[1742676918856,2.53753519,1998.8,1998.7,0.79345335]
[1742676919155,2.98040154,1998.8,1998.7,0.79345335]
[1742676919930,0.44286635,1998.8,1998.7,5.43145335]
[1742676920117,2.53753519,1999.0,1998.7,9.64125]
[1742676920461,0.44286635,1998.8,1998.7,9.64123]
[1742676920657,2.53753519,1999.0,1998.7,9.64123]
[1742676920841,0.44258204,1998.8,1998.7,9.64123]
[1742676921331,7.54012519,1999.0,1998.7,4.638]
[1742676921530,0.44258204,1998.8,1998.7,4.638]
[1742676921750,2.53753519,1998.9,1998.7,5.4428]
[1742676922053,0.44260573,1998.8,1998.7,5.4428]
[1742676922629,2.53753519,1998.9,1998.7,5.4428]
[1742676922825,0.44260573,1998.8,1998.7,5.4428]
[1742676923068,2.53753519,1998.9,1998.7,5.4428]
[1742676923229,0.44260573,1998.8,1998.7,5.4428]
[1742676923434,2.53753519,1998.9,1998.7,5.4428]
[1742676923627,0.44260573,1998.8,1998.7,5.4428]
[1742676923832,2.53753519,1998.9,1998.7,5.4428]
[1742676924054,0.44260573,1998.8,1998.7,5.4428]
[1742676924363,2.53753519,1998.9,1998.7,5.4428]
[1742676924542,0.44260573,1998.8,1998.7,5.4428]
[1742676924740,2.53753519,1998.9,1998.7,5.4428]
[1742676924940,0.44260573,1998.8,1998.7,5.4428]
[1742676925145,2.53753519,1998.9,1998.7,5.4428]
[1742676925344,0.44260573,1998.8,1998.7,5.4428]
[1742676925545,2.53753519,1998.9,1998.7,10.44605]
[1742676925746,0.44260573,1998.8,1998.7,5.4428]
[1742676925948,2.53753519,1998.9,1998.7,5.4428]
[1742676926136,0.44260573,1998.8,1998.7,5.4428]
[1742676926335,2.53753519,1998.9,1998.7,5.4428]
[1742676926537,0.44260573,1998.8,1998.7,5.4428]
[1742676926766,2.53753519,1998.9,1998.7,5.4428]
[1742676926971,0.44260573,1998.8,1998.7,5.4428]
[1742676927169,2.53753519,1998.9,1998.7,5.4428]
[1742676927474,0.44260573,1998.8,1998.7,5.4428]
[1742676927642,2.53753519,1998.9,1998.7,5.4428]
[1742676927842,0.44260573,1998.8,1998.7,5.4428]
[1742676928044,2.53753519,1998.9,1998.7,5.4428]
[1742676928372,0.44260573,1998.8,1998.7,10.44595]
[1742676928576,7.54009519,1999.0,1998.7,10.44595]
[1742676929068,0.44271854,1998.9,1998.7,5.4428]
[1742676929671,0.44271854,1998.9,1998.7,10.44603]
[1742676930041,0.44271854,1998.9,1998.7,5.4428]
[1742676930774,2.98025373,1998.9,1998.7,5.4428]
[1742676934771,2.53753519,1998.8,1998.7,5.4428]
[1742676934947,2.9800935,1998.8,1998.7,5.4428]
[1742676935273,0.44255831,1998.8,1998.7,5.4428]
[1742676935493,12.54333519,1998.9,1998.7,4.638]
[1742676935651,2.9800935,1998.8,1998.7,4.638]
[1742676935847,0.44255831,1998.8,1998.7,4.638]
[1742676936069,7.54038519,1998.9,1998.7,4.638]
[1742676936266,0.44255831,1998.8,1998.7,4.638]
[1742676936470,7.54038519,1998.9,1998.7,4.638]
[1742676936678,0.44255831,1998.8,1998.7,4.638]
[1742676936853,7.54038519,1998.9,1998.7,4.638]
[1742676937058,0.44255831,1998.8,1998.7,4.638]
[1742676937279,2.53753519,1999.0,1998.7,9.64125]
[1742676937581,0.44267112,1998.9,1998.7,9.64125]
[1742676937745,0.44267112,1998.9,1998.7,10.40765]
[1742676938346,2.98020631,1998.9,1998.7,5.4044]
[1742676944482,0.44267112,1998.9,1998.8,5.003]
[1742676944788,0.44267112,1998.9,1998.7,10.40763]
[1742676945586,0.44267112,1998.9,1998.7,15.41076]
[1742676945758,0.44267112,1998.9,1998.7,10.40753]
[1742676954376,0.44267112,1998.9,1998.7,5.4044]
[1742676954786,2.98020631,1998.9,1998.7,5.4044]
[1742676954993,7.98300631,1998.9,1998.7,4.638]
[1742676956501,5.003,1998.8,1998.7,4.638]
[1742676956802,0.44232137,1998.8,1998.7,4.638]
[1742676956998,12.54340519,1998.9,1998.7,4.638]
[1742676957171,5.44532137,1998.8,1998.7,4.638]
[1742676963003,0.44232137,1998.8,1998.7,4.638]
[1742676963393,12.54330519,1998.9,1998.7,4.638]
[1742676963591,0.4419422,1998.8,1998.7,4.638]
[1742676963891,12.54330519,1998.9,1998.7,4.638]
[1742676964200,0.4419422,1998.8,1998.7,4.638]
[1742676964503,12.54330519,1998.9,1998.7,4.638]
[1742676964802,5.4449422,1998.8,1998.7,4.638]
[1742676967175,7.98247739,1998.8,1998.7,4.638]
[1742676969906,8.73877739,1998.8,1998.6,31.07]
[1742676970092,2.53753519,1998.7,1998.6,31.07]
[1742676970406,2.97936457,1998.7,1998.6,31.07]
[1742676972570,2.97936457,1998.7,1998.6,26.449]
[1742676972806,2.97936457,1998.7,1998.6,31.07]
[1742676972807,7.98261457,1998.7,1998.6,31.07]
[1742676973179,9.35680603,1998.7,1998.6,26.449]
[1742676975884,14.36026603,1998.7,1998.3,10.43702]
[1742676976072,2.53753519,1998.6,1998.3,10.43702]
[1742676976277,0.44079024,1998.5,1998.3,10.43702]
[1742676986328,7.98209543,1998.5,1998.2,31.45748]
[1742676986534,2.53753519,1998.4,1998.2,31.45748]
[1742676986824,0.44004107,1998.3,1998.2,31.45748]
[1742676987199,2.53753519,1998.5,1998.2,31.45748]
[1742676987606,2.53753519,1998.5,1998.3,4.621]
[1742676987931,3.37407471,1998.5,1998.3,4.621]
[1742676992629,0.44076744,1998.4,1998.3,4.621]
[1742676995130,0.44076744,1998.4,1998.3,31.076]
[1742676998499,2.97830263,1998.4,1998.3,26.455]
[1742676998702,8.86417185,1998.4,1998.3,31.077]
[1742676998931,9.68837185,1998.4,1998.3,31.077]
[1742677000099,9.68837185,1998.4,1998.2,4.622]
[1742677000338,2.53753519,1998.3,1998.2,4.622]
[1742677000638,2.97747878,1998.3,1998.2,4.622]
[1742677000825,3.94623358,1998.3,1998.2,4.622]
[1742677001228,2.97747878,1998.3,1998.2,4.622]
[1742677006337,7.98172878,1998.3,1998.2,4.622]
[1742677010733,5.0045,1998.2,1998.1,26.466]
[1742677010938,7.98148664,1998.2,1998.1,31.088]
[1742677011253,8.79588664,1998.2,1998.1,31.088]
[1742677011430,10.4759003,1998.2,1998.1,31.088]
[1742677011812,13.4759003,1998.2,1998.1,26.466]
[1742677012218,16.01343549,1998.2,1998.1,26.466]
[1742677013114,16.01343549,1998.2,1998.1,0.01]
[1742677014246,16.56343549,1998.2,1998.1,0.01]
[1742677015441,16.56343549,1998.2,1997.5,4.7421393]
[1742677015442,5.8204,1997.6,1997.5,4.7421393]
[1742677015750,11.7933655,1997.6,1997.5,4.7421393]
[1742677015951,11.7933655,1997.6,1997.5,0.1181393]
[1742677016114,12.16235045,1997.6,1997.5,0.1181393]
[1742677020519,6.34195045,1997.6,1997.5,5.1243893]
[1742677020939,6.34195045,1997.6,1997.5,0.1181393]
[1742677021169,7.4767225,1997.6,1997.5,0.1181393]
[1742677021332,12.4827225,1997.6,1997.5,0.1181393]
[1742677021929,4.93918731,1997.6,1997.5,0.1181393]
[1742677022127,6.34195045,1997.6,1997.5,0.1181393]
[1742677023891,3.43543031,1997.6,1997.5,5.1243893]
[1742677024095,3.43543031,1997.6,1997.5,0.1181393]
[1742677024462,3.43543031,1997.6,1997.5,5.1243893]
[1742677025397,0.43543031,1997.6,1997.5,5.1243893]
[1742677025701,0.43543031,1997.6,1997.5,5.9031893]
[1742677025895,2.53753519,1997.7,1997.6,5.00597]
[1742677026083,2.53753519,1997.7,1997.6,9.63697]
[1742677027250,2.53753519,1997.8,1997.6,9.63697]
[1742677028585,2.53753519,1997.8,1997.7,5.00575]
[1742677028881,5.53753519,1997.9,1997.7,5.78455]
[1742677029479,2.53753519,1997.9,1997.8,5.0055]
[1742677029795,2.53753519,1998.0,1997.7,0.7788]
[1742677030102,2.53753519,1998.0,1997.7,10.79011]
[1742677030291,2.53753519,1998.0,1997.8,5.00549]
[1742677030647,2.53753519,1998.0,1997.7,5.78451]
[1742677030875,2.53753519,1997.9,1997.7,5.78451]
[1742677031063,2.53753519,1997.9,1997.7,0.7788]
[1742677035158,5.005,1998.0,1997.7,0.7788]
[1742677035159,2.53753519,1998.0,1997.7,5.78433]
[1742677035369,2.53753519,1998.0,1997.8,10.0107]
[1742677036086,2.53753519,1998.0,1997.8,5.00534]
[1742677037083,2.53753519,1998.0,1997.9,0.7759]
[1742677037084,5.53753519,1998.0,1997.9,0.7759]
[1742677037683,5.97312488,1998.0,1997.9,0.7759]
[1742677038081,3.43558969,1998.0,1997.9,0.7759]
[1742677038683,0.43558969,1998.0,1997.9,6.359279]
[1742677039181,5.53753519,1998.3,1998.0,10.00982]
[1742677039389,5.53753519,1998.3,1998.1,5.00466]
[1742677039559,0.4358155,1998.2,1998.1,5.00466]
[1742677039759,0.4358155,1998.2,1998.1,5.78056]
[1742677040381,2.97335069,1998.2,1998.1,5.78056]
[1742677040589,2.97335069,1998.2,1998.1,5.00466]
[1742677040768,2.97335069,1998.2,1998.0,14.63767]
[1742677042300,0.4358155,1998.2,1998.0,9.63283]
[1742677042675,2.97335069,1998.2,1998.0,9.63283]
[1742677044889,0.4358155,1998.2,1998.0,9.63283]
[1742677047213,5.07507038,1998.1,1997.7,26.467]
[1742677047377,2.53753519,1997.8,1997.7,26.467]
[1742677047709,0.43611209,1997.8,1997.7,26.467]
[1742677048605,2.97364728,1997.8,1997.7,26.467]
[1742677049889,0.43611209,1997.8,1997.7,26.467]
[1742677050092,1.23400482,1997.8,1997.7,26.467]
[1742677050695,3.77154001,1997.8,1997.7,26.467]
[1742677051072,8.77704001,1997.8,1997.7,26.467]
[1742677053675,7.97914728,1997.8,1997.7,26.467]
[1742677054678,7.97914728,1997.8,1997.7,31.104]
[1742677055071,8.78754728,1997.8,1997.7,31.104]
[1742677056477,5.006,1997.6,1997.5,0.1181393]
[1742677056680,8.04413519,1997.6,1997.5,0.1181393]
[1742677056880,7.97865811,1997.6,1997.5,0.1181393]
[1742677057464,7.97865811,1997.6,1997.5,4.7791393]
[1742677057671,8.79085811,1997.6,1997.5,4.7791393]
[1742677057902,11.79085811,1997.6,1997.5,4.7791393]
[1742677058408,11.79085811,1997.6,1997.5,0.1181393]
[1742677058567,13.47054392,1997.6,1997.5,0.1181393]
[1742677059705,13.8468074,1997.6,1997.5,0.1181393]
[1742677063786,13.0346074,1997.6,1997.5,0.1181393]
[1742677069232,12.65834392,1997.6,1997.5,0.1181393]
[1742677071508,13.48094392,1997.6,1997.5,0.1181393]
[1742677071903,13.86397608,1997.6,1997.5,0.1181393]
[1742677077340,13.04137608,1997.6,1997.5,0.1181393]
[1742677077504,16.34451127,1997.6,1997.5,0.1181393]
[1742677079634,16.89451127,1997.6,1997.5,0.1181393]
[1742677081035,14.35697608,1997.6,1997.5,0.1181393]
[1742677081231,13.80697608,1997.6,1997.5,0.1181393]
[1742677082407,16.89451127,1997.6,1997.5,0.1181393]
[1742677088243,14.35697608,1997.6,1997.5,0.1181393]
[1742677088636,16.89451127,1997.6,1997.5,0.1181393]
[1742677095849,11.81944089,1997.6,1997.5,0.1181393]
[1742677096036,13.04137608,1997.6,1997.5,0.1181393]
[1742677096226,11.36169027,1997.6,1997.5,0.1181393]
[1742677098246,15.26392546,1997.6,1997.5,0.1181393]
[1742677101156,18.67894944,1997.6,1997.5,0.1181393]
[1742677109830,18.67894944,1997.6,1997.5,9.3e-06]
[1742677115656,13.06920226,1997.6,1997.5,9.3e-06]
[1742677115966,10.06920226,1997.6,1997.5,9.3e-06]
[1742677116132,13.06920226,1997.6,1997.5,9.3e-06]
[1742677116559,14.97814698,1997.6,1997.5,9.3e-06]
[1742677120264,13.06920226,1997.6,1997.5,9.3e-06]
[1742677121963,17.31424944,1997.6,1997.5,9.3e-06]
[1742677122168,18.07234944,1997.6,1997.5,9.3e-06]
[1742677122369,18.62234944,1997.6,1997.5,9.3e-06]
[1742677123167,15.22554884,1997.6,1997.5,9.3e-06]
[1742677123346,17.24870372,1997.6,1997.5,9.3e-06]
[1742677123884,16.49060372,1997.6,1997.5,9.3e-06]
[1742677124071,13.94395684,1997.6,1997.5,9.3e-06]
[1742677125273,13.39395684,1997.6,1997.5,9.3e-06]
[1742677129955,15.94060372,1997.6,1997.5,9.3e-06]
[1742677130171,13.39395684,1997.6,1997.5,9.3e-06]
[1742677131177,15.94060372,1997.6,1997.5,9.3e-06]
[1742677135972,16.49060372,1997.6,1997.5,9.3e-06]
[1742677137492,8.82415508,1997.6,1997.5,9.3e-06]
[1742677137795,11.37080196,1997.6,1997.5,9.3e-06]
[1742677142509,11.92080196,1997.6,1997.5,9.3e-06]
[1742677148312,14.46744884,1997.6,1997.5,9.3e-06]
[1742677150308,15.28894884,1997.6,1997.5,9.3e-06]
[1742677150513,8.00726,1997.1,1997.0,5.4684]
[1742677150714,8.00726,1997.1,1996.8,27.2387]
[1742677150715,5.00776,1996.9,1996.8,27.2387]
[1742677150878,7.93890719,1996.9,1996.8,27.2387]
[1742677152309,7.93890719,1996.9,1996.8,0.7607]
[1742677152509,5.0087,1996.6,1996.5,0.7607]
[1742677152713,5.00908,1996.4,1996.2,4.665]
[1742677153012,0.38262672,1996.3,1996.2,4.665]
[1742677153208,0.38262672,1996.3,1996.0,36.4949]
[1742677153402,5.00908,1996.4,1996.2,4.688]
[1742677154879,4.24745462,1996.3,1996.0,26.475]
[1742677155079,9.25685462,1996.3,1996.1,4.687]
[1742677155711,9.25685462,1996.3,1996.2,0.7607]
[1742677155917,10.68346608,1996.3,1996.2,0.7607]
[1742677156806,6.43601146,1996.3,1996.2,0.7607]
[1742677157016,10.68346608,1996.3,1996.2,0.7607]
[1742677157408,5.00976,1996.1,1996.0,27.2498]
[1742677157602,9.25721462,1996.1,1996.0,27.2498]
[1742677157806,9.25721462,1996.1,1996.0,0.7748]
[1742677157807,9.63750079,1996.1,1996.0,0.7748]
[1742677158316,10.01648703,1996.1,1996.0,0.7748]
[1742677158519,10.01648703,1996.1,1995.4,32.48204456]
[1742677158520,5.01041,1995.9,1995.6,5.4838]
[1742677158733,1.84369532,1996.1,1995.8,0.7748]
[1742677158960,9.63625086,1996.1,1995.8,0.7748]
[1742677159217,5.00981,1996.1,1995.8,0.7748]
[1742677159518,12.25707462,1996.2,1995.8,5.01043]
[1742677159721,7.24745462,1996.2,1996.1,0.7748]
[1742677160300,4.24745462,1996.3,1996.1,0.7748]
[1742677160519,7.24745462,1996.4,1996.1,0.7748]
[1742677161028,12.25650462,1996.4,1996.1,0.7748]
[1742677163317,5.00929,1996.3,1996.1,0.7748]
[1742677163921,9.25674462,1996.3,1996.1,0.7748]
[1742677165525,4.24745462,1996.3,1996.1,0.7748]
[1742677165708,9.25672462,1996.3,1996.1,0.7748]
[1742677165913,4.24745462,1996.3,1996.1,0.7748]
[1742677166844,9.25673462,1996.3,1996.1,0.7748]
[1742677167711,5.00951,1996.2,1996.1,0.7748]
[1742677167908,9.25673462,1996.3,1996.1,5.4888]
[1742677168112,14.26612462,1996.3,1996.1,5.4888]
[1742677169251,9.25673462,1996.3,1996.1,4.714]
[1742677169558,8.38461102,1996.6,1996.3,0.777]
[1742677169729,8.00862,1996.6,1996.3,0.777]
[1742677170224,5.0088,1996.5,1996.3,0.777]
[1742677172553,0.37859224,1996.4,1996.3,0.777]
[1742677172720,0.37859224,1996.4,1996.3,5.00926]
[1742677172914,5.00837,1996.7,1996.4,0.777]
[1742677173145,5.00837,1996.7,1996.6,0.777]
[1742677173335,9.25499462,1997.0,1996.6,0.777]
[1742677173539,5.0081,1996.8,1996.6,0.777]
[1742677173839,5.00826,1996.7,1996.6,0.777]
[1742677174651,9.25571462,1996.7,1996.6,0.777]
[1742677177762,3.0,1997.0,1996.6,0.777]
[1742677178057,3.0,1997.0,1996.6,5.78549]
[1742677178058,4.24745462,1996.9,1996.6,5.78549]
[1742677178232,9.25534462,1996.9,1996.6,0.777]
[1742677178736,5.00804,1996.8,1996.6,0.777]
[1742677178937,9.25534462,1996.9,1996.6,0.777]
[1742677179172,14.26327462,1996.9,1996.6,0.777]
[1742677179464,14.26321462,1996.9,1996.6,0.777]
[1742677179846,5.00803,1996.8,1996.6,0.777]
[1742677181161,9.25532462,1996.9,1996.6,0.777]
[1742677182372,5.00805,1996.8,1996.6,0.777]
[1742677184369,9.25522462,1996.9,1996.6,5.78539]
[1742677184850,9.25522462,1996.9,1996.6,0.777]
[1742677185250,14.26316462,1996.9,1996.6,0.777]
[1742677185473,5.00801,1996.8,1996.6,0.777]
[1742677186769,9.25575462,1996.7,1996.4,32.28953]
[1742677186969,5.00869,1996.6,1996.5,4.72]
[1742677187643,14.64701644,1996.6,1996.5,4.72]
[1742677188066,5.00876,1996.5,1996.4,27.2807]
[1742677188238,5.00876,1996.5,1996.4,31.201]
[1742677188456,5.39077184,1996.5,1996.4,31.201]
[1742677188768,9.63822646,1996.5,1996.4,31.201]
[1742677190680,0.38201184,1996.5,1996.4,31.201]
[1742677192082,11.10290111,1996.5,1996.4,26.483]
[1742677193689,8.00901,1996.4,1996.3,4.717]
[1742677193991,8.38998417,1996.4,1996.3,4.717]
[1742677197896,5.00939,1996.3,1996.0,27.2787]
[1742677198190,5.38930898,1996.2,1996.1,4.71]
[1742677201366,5.00976,1996.1,1996.0,31.192]
[1742677201710,11.10137896,1996.2,1996.0,31.192]
[1742677201910,4.6271036,1996.2,1996.0,31.192]
[1742677202105,9.6366236,1996.2,1996.0,31.192]
[1742677204103,14.6463636,1996.2,1996.0,31.192]
[1742677204413,5.00976,1996.1,1996.0,31.192]
[1742677204579,5.75976,1996.1,1996.0,26.481]
[1742677204780,10.29939836,1996.1,1996.0,26.481]
[1742677205186,5.01102,1995.6,1995.5,0.1181393]
[1742677205396,9.25847462,1995.6,1995.5,0.1181393]
[1742677205982,13.00847462,1995.6,1995.5,0.1181393]
[1742677206281,14.81040308,1995.6,1995.5,0.1181393]
[1742677209997,5.76202,1995.2,1995.1,0.01]
[1742677210234,17.25692924,1995.2,1995.1,0.01]
[1742677210895,17.80692924,1995.2,1995.1,1e-05]
[1742677211111,19.53880816,1995.2,1995.1,1e-05]
[1742677211314,15.29135354,1995.2,1995.1,1e-05]
[1742677211544,5.01407,1994.4,1994.0,27.2498]
[1742677211749,4.24745462,1994.1,1994.0,27.2498]
[1742677212707,9.26224462,1994.1,1994.0,26.49]
[1742677213094,3.0,1994.6,1994.0,26.49]
[1742677213095,9.26180462,1994.3,1994.0,26.49]
[1742677213340,5.01468,1994.2,1994.0,27.2498]
[1742677213622,5.01468,1994.2,1994.0,26.49]
[1742677213892,10.02937,1994.2,1994.0,26.49]
[1742677214100,5.01479,1994.1,1994.0,26.49]
[1742677214309,9.26224462,1994.1,1994.0,26.49]
[1742677214628,5.01529,1993.9,1993.8,4.734]
[1742677214847,5.01563,1993.8,1993.6,1.0130978]
[1742677215009,5.01435,1994.3,1993.8,0.7598]
[1742677215191,3.0,1994.0,1993.9,4.738]
[1742677215592,0.7776,1994.8,1994.0,0.7598]
[1742677215833,4.24745462,1994.5,1994.0,0.7598]
[1742677216142,5.01443,1994.3,1994.1,4.74]
[1742677216446,5.01493,1994.1,1994.0,4.743]
[1742677216670,5.01516,1994.0,1993.6,1.7728978]
[1742677216937,5.01529,1993.9,1993.8,4.752]
[1742677217100,9.26274462,1993.9,1993.8,4.752]
[1742677217493,5.01529,1993.9,1993.8,4.752]
[1742677217995,8.01529,1993.9,1993.8,4.752]
[1742677218220,9.74308046,1993.9,1993.8,4.752]
[1742677219130,5.01589,1993.7,1993.5,0.1181393]
[1742677219338,8.01605,1993.6,1993.5,0.1181393]
[1742677219508,16.51095924,1993.6,1993.5,0.1181393]
[1742677219711,13.04110462,1993.6,1993.5,0.1181393]
[1742677220013,5.01589,1993.7,1993.5,0.1181393]
[1742677220014,5.0158,1993.7,1993.5,0.1181393]
[1742677220213,9.26350462,1993.6,1993.5,0.1181393]
[1742677221199,10.04110462,1993.6,1993.5,0.1181393]
[1742677221400,13.04110462,1993.6,1993.5,0.1181393]
[1742677221835,17.28855924,1993.6,1993.5,0.1181393]
[1742677222137,17.83855924,1993.6,1993.5,9.3e-06]
[1742677222340,20.24460995,1993.6,1993.5,9.3e-06]
[1742677222817,8.0177,1993.0,1992.5,5.0186]
[1742677223137,4.24745462,1992.8,1992.4,4.794]
[1742677223310,5.01882,1992.5,1992.4,4.794]
[1742677223510,4.24745462,1992.8,1992.4,4.794]
[1742677223807,0.7776,1993.6,1993.0,5.77716]